[Event "GER-ch Youth-U18w 2023"]
[Site "Willingen"]
[Date "2023.06.01"]
[Round "7.2"]
[White "Heutling, Elina"]
[Black "Peglau, Mirjam"]
[Result "1-0"]
[Annotator "TA"]
[ECO "C45"]
[WhiteElo "1878"]
[BlackElo "1932"]
[PlyCount "114"]
[EventDate "2022.06.05"]
[EventType "swiss"]
[EventRounds "9"]
[EventCountry "GER"]
[SourceTitle "playchess.com"]
[Source "ChessBase"]
[SourceQuality "1"]
[TimeControl "40/4500+30:900+30"]

{[%evp 11,114,16,22,0,0,-34,-31,-35,-6,-29,6,-11,0,-9,6,8,8,0,0,0,12,-8,0,0,0,0,22,0,0,0,0,1,8,-9,0,-23,-3,-95,-18,-99,-95,-111,-112,-121,-118,-203,-193,-216,-234,-235,-221,-222,-135,-130,-26,-26,-26,-27,-27,-27,-27,-28,-54,-40,0,-12,0,0,0,0,8,-7,-7,-7,0,0,0,-7,-7,-7,-7,-7,-8,-12,-12,-148,-12,-12,-12,-12,-12,-12,-12,-12,0,-12,-12,-12,-12,-12,-12,-12,0,0,0]} 1. e4 {[%emt 0:00:00]} Nc6 {[%emt 0:00:00]} 2. d4 {[%emt 0:00:00]} e5 {[%emt 0:00:00]} 3. dxe5 {[%emt 0:06:37]} Nxe5 {[%emt 0:00:00]} 4. Nf3 {[%emt 0:00:27]} Nxf3+ {[%emt 0:00:00]} 5. Qxf3 {[%emt 0:00:03]} Qf6 {[%emt 0:00:00]} 6. Qxf6 {[%emt 0:13:58]} Nxf6 {[%emt 0:00:00]} 7. Bd3 {[%emt 0:02:25] C45: Scotch Game.} d5 {[%emt 0:00:06] [#]} 8. e5 $146 {[%emt 0:09:05]} ({Predecessor:} 8. Nd2 Be6 9. exd5 Nxd5 10. a3 O-O-O 11. Ne4 h6 12. Bd2 f5 13. Nc3 g6 14. O-O-O Bg7 {0-1 Westerinen,H (2370)-Yermolinsky,A (2590) Olympiad-31 Moscow 1994 (3.1)}) 8... Nd7 {[%emt 0:04:23]} 9. O-O {[%emt 0:07:33] Black is slightly better.} Bc5 {[%emt 0:02:43]} 10. Bf4 {[%emt 0:07:11][%cal Oe5e6]} O-O {[%emt 0:03:23]} 11. c3 {[%emt 0:01:07] Dodges Bd4} c6 {[%emt 0:05:33]} 12. Nd2 {[%emt 0:05:55][%cal Bb1d2,Bd2b3,Bb3d4][%mdl 32]} f6 {[%emt 0:05:17]} 13. exf6 {[%emt 0:00:20]} ({Reject} 13. e6 Ne5 14. Bc2 Bxe6 $17) 13... Nxf6 {[%emt 0:00:18]} 14. b4 {[%emt 0:03:08]} Bb6 {[%emt 0:01:26][%cal Of6e4]} 15. Bd6 {[%emt 0:01:13]} Re8 {[%emt 0:02:02]} 16. Rae1 {[%emt 0:03:07]} Be6 {[%emt 0:03:46][%cal Bc8e6,Be6f7,Bf7h5][%mdl 32]} 17. Nb3 {[%emt 0:01:29]} Rad8 {[%emt 0:07:14]} 18. Bc5 {[%emt 0:01:06]} Nd7 {[%emt 0:08:02][%cal Bf6d7,Bd7b6,Bb6c4,Bc4a3][%mdl 32]} 19. Nd4 {[%emt 0:01:38]} Bf7 {[%emt 0:03:05]} 20. Bxb6 {[%emt 0:03:05]} Nxb6 {[%emt 0:02:18]} 21. Bc2 {[%emt 0:12:25]} Nc4 {[%emt 0:03:01]} 22. Nf3 {[%emt 0:01:13]} Bh5 {[%emt 0:04:37] White must now prevent ...Bxf3.} 23. Rxe8+ {[%emt 0:00:28]} Rxe8 {[%emt 0:00:23]} 24. Re1 {[%emt 0:00:03]} (24. Nd4 $1 $11) 24... Rxe1+ $17 {[%emt 0:01:55]} 25. Nxe1 {[%emt 0:00:01][%mdl 4096] Endgame [#] KBN-KBN} Na3 $1 {[%emt 0:00:54]} 26. Bf5 {[%emt 0:00:40]} Nb5 {[%emt 0:01:40]} 27. Bc8 {[%emt 0:01:19]} Nd6 {[%emt 0:07:13]} 28. Bd7 {[%emt 0:01:19]} (28. Bh3 $17) 28... Kf8 $19 {[%emt 0:02:18]} 29. Nc2 {[%emt 0:01:11]} Ke7 {[%emt 0:01:21]} 30. Bh3 {[%emt 0:00:02]} Nb5 {[%emt 0:05:51]} 31. Bc8 {[%emt 0:00:27]} Bg6 {[%emt 0:03:04] Prevents g4.} 32. Nd4 {[%emt 0:00:40]} Nxd4 {[%emt 0:00:59]} (32... Nxc3 $17 33. a3 Kd6 34. Bxb7 c5 35. bxc5+ Kxc5 36. Ne6+ Kb6) 33. cxd4 $17 {[%emt 0:00:01] KB-KB} b6 {[%emt 0:00:01]} 34. f3 {[%emt 0:01:55]} Kd6 {[%emt 0:01:54]} 35. Kf2 {[%emt 0:00:52]} c5 {[%emt 0:00:13]} 36. bxc5+ {[%emt 0:00:37]} bxc5 {[%emt 0:00:01]} 37. Ke3 {[%emt 0:00:20]} Bf7 {[%emt 0:02:14]} 38. f4 {[%emt 0:00:47]} Kc7 {[%emt 0:02:58]} 39. Bf5 {[%emt 0:00:34]} g6 {[%emt 0:00:07]} 40. Bc2 {[%emt 0:00:14]} Kb6 {[%emt 0:00:28]} 41. Kd3 {[%emt 0:01:26]} Be6 {[%emt 0:00:00]} 42. Kc3 {[%emt 0:01:11]} Kc6 {[%emt 0:00:00]} 43. h3 {[%emt 0:06:55]} Kd6 {[%emt 0:00:00]} 44. Bd3 {[%emt 0:04:27]} c4 {[%emt 0:02:00]} 45. Bc2 {[%emt 0:00:22]} Bf5 {[%emt 0:00:38]} 46. Bd1 {[%emt 0:01:23]} Be4 {[%emt 0:01:14]} 47. g3 {[%emt 0:01:38]} Ke6 {[%emt 0:05:52]} 48. Bg4+ {[%emt 0:00:39] [#]} (48. Kb2 $11 {keeps the balance.}) 48... Kf6 {[%emt 0:00:11]} (48... Bf5 $1 $17 {[%cal Rf5g4] Hoping for ...Bxg4.} 49. Bf3 Bxh3) 49. h4 $11 {[%emt 0:00:42] The position is equal.} h6 {[%emt 0:01:15]} 50. Bd7 {[%emt 0:00:34]} Bf5 {[%emt 0:02:04]} 51. Bc6 {[%emt 0:00:09]} Be6 {[%emt 0:00:47]} 52. Ba4 $1 {[%emt 0:00:17]} Bf5 {[%emt 0:06:05]} 53. Bc6 {[%emt 0:00:06]} Ke6 {[%emt 0:00:23]} 54. Be8 {[%emt 0:01:08]} Be4 {[%emt 0:00:51]} 55. Kd2 {[%emt 0:00:55]} Bb1 {[%emt 0:01:31]} 56. Kc3 {[%emt 0:00:07]} Kf5 {[%emt 0:00:53] ...Kg4 is the strong threat.} 57. Bf7 {[%emt 0:01:11]} Be4 {[%emt 0:00:19][%mdl 32768] Black had all chances to win.   Weighted Error Value: White=0.14 (very precise) /Black=0.14 (very precise) . Loss on time!?} 1-0

[Event "GER-ch Youth-U18w 2023"]
[Site "Willingen"]
[Date "2023.06.01"]
[Round "7.3"]
[White "Groeschel, Karoline"]
[Black "Buchholz, Maja Patricia"]
[Result "1-0"]
[Annotator "NA RC COMBH"]
[ECO "B12"]
[WhiteElo "1892"]
[BlackElo "1899"]
[PlyCount "83"]
[EventDate "2022.06.05"]
[EventType "swiss"]
[EventRounds "9"]
[EventCountry "GER"]
[SourceTitle "playchess.com"]
[Source "ChessBase"]
[SourceQuality "1"]
[TimeControl "40/4500+30:900+30"]

1. e4 {[%emt 0:00:00]} c6 {[%emt 0:00:00]} 2. d4 {[%emt 0:00:00]} d5 {[%emt 0:00:00]} 3. e5 {[%emt 0:00:00]} Bf5 {[%emt 0:00:00]} 4. h4 {[%emt 0:00:00]} h5 {[%emt 0:00:00]} 5. Bd3 {[%emt 0:00:00]} Bxd3 {[%emt 0:00:00]} 6. Qxd3 {[%emt 0:00:00]} e6 {[%emt 0:00:00]} 7. Nf3 {[%emt 0:00:00]} Ne7 {[%emt 0:00:00]} 8. Bg5 {[%emt 0:00:00]} Qb6 {[%emt 0:00:00]} 9. Nbd2 {[%emt 0:00:00]} Nd7 {[%emt 0:00:00]} 10. O-O {[%emt 0:00:00]} Nf5 {[%emt 0:09:33]} 11. c4 {[%emt 0:05:39]} dxc4 {[%emt 0:14:30]} 12. Nxc4 {[%emt 0:03:17]} Qb5 {[%emt 0:00:53]} 13. a4 {[%emt 0:13:58]} Qa6 {[%emt 0:07:15]} 14. b3 {[%emt 0:18:11]} Bb4 {[%emt 0:07:52]} 15. Bd2 {[%emt 0:05:39]} Bxd2 {[%emt 0:06:04]} 16. Qxd2 {[%emt 0:00:17]} O-O {[%emt 0:10:20]} 17. Qg5 {[%emt 0:04:04]} g6 {[%emt 0:00:34]} 18. Ne3 {[%emt 0:03:10]} Qd3 {[%emt 0:05:42]} 19. Rad1 {[%emt 0:05:46]} Qe4 {[%emt 0:03:29]} 20. Nxf5 {[%emt 0:03:52]} Qxf5 {[%emt 0:00:45]} 21. Qh6 {[%emt 0:00:23]} Rfd8 {[%emt 0:00:56]} 22. Ng5 {[%emt 0:00:50]} Nf8 {[%emt 0:00:04]} 23. Rfe1 {[%emt 0:01:07]} Qc2 {[%emt 0:03:02]} 24. Ne4 {[%emt 0:00:49]} f5 {[%emt 0:02:30]} 25. exf6 {[%emt 0:02:11]} Rd7 {[%emt 0:00:17]} 26. Rd2 {[%emt 0:02:04]} Qxb3 {[%emt 0:00:29]} 27. Nc5 {[%emt 0:00:07]} Qd5 {[%emt 0:02:17]} 28. Nxd7 {[%emt 0:01:05]} Qxd7 {[%emt 0:00:06]} 29. d5 {[%emt 0:04:52]} cxd5 {[%emt 0:02:53]} 30. Rxd5 {[%emt 0:02:09]} Qh7 {[%emt 0:00:28]} 31. Qxh7+ {[%emt 0:00:19]} Kxh7 {[%emt 0:00:06]} 32. Rc5 {[%emt 0:00:43]} b6 {[%emt 0:03:05]} 33. Rc7+ {[%emt 0:00:12]} Kh6 {[%emt 0:00:53]} 34. Re7 {[%emt 0:02:36]} Rd8 {[%emt 0:02:26]} 35. Rxa7 {[%emt 0:03:07]} g5 {[%emt 0:00:26]} 36. hxg5+ {[%emt 0:00:46]} Kxg5 {[%emt 0:00:06]} 37. f7 {[%emt 0:01:04]} Kf6 {[%emt 0:00:42]} 38. Re3 {[%emt 0:01:31]} Rb8 {[%emt 0:03:31]} 39. Rf3+ {[%emt 0:00:15]} Kg6 {[%emt 0:00:21]} 40. Rg3+ {[%emt 0:02:41]} Kf6 {[%emt 0:00:22]} 41. Rg8 {[%emt 0:03:13]} Rc8 {[%emt 0:00:00]} 42. Kh2 {[%emt 0:00:00]} 1-0

[Event "GER-ch Youth-U18w 2023"]
[Site "Willingen"]
[Date "2023.06.01"]
[Round "7.4"]
[White "Cordes, Jule"]
[Black "Reuter, Elisa"]
[Result "1/2-1/2"]
[Annotator "TA"]
[ECO "D91"]
[WhiteElo "1744"]
[BlackElo "1944"]
[PlyCount "61"]
[EventDate "2022.06.05"]
[EventType "swiss"]
[EventRounds "9"]
[EventCountry "GER"]
[SourceTitle "playchess.com"]
[Source "ChessBase"]
[SourceQuality "1"]
[TimeControl "40/4500+30:900+30"]

{[%evp 23,61,13,45,39,91,87,128,89,120,-11,-14,-14,-16,-14,-15,-47,-16,-60,-53,-56,-34,-34,-34,-86,-90,-96,-85,-90,-78,-93,-29,-29,-29,-232,-9,-12,-8,-8,-8,-22]} 1. d4 {[%emt 0:00:00]} Nf6 {[%emt 0:00:00]} 2. c4 {[%emt 0:00:00]} g6 {[%emt 0:00:00]} 3. Nc3 {[%emt 0:00:00]} d5 {[%emt 0:00:00]} 4. Nf3 {[%emt 0:00:00]} Bg7 {[%emt 0:00:00]} 5. Bg5 {[%emt 0:00:00]} Ne4 {[%emt 0:00:00]} 6. Bf4 {[%emt 0:00:00]} Nxc3 {[%emt 0:00:00]} 7. bxc3 {[%emt 0:00:00]} c5 {[%emt 0:00:00]} 8. cxd5 {[%emt 0:00:00]} Qxd5 {[%emt 0:00:00]} 9. e3 {[%emt 0:00:00]} O-O {[%emt 0:00:00]} 10. Be2 {[%emt 0:00:00]} cxd4 {[%emt 0:00:00]} 11. cxd4 {[%emt 0:00:00]} Nc6 {[%emt 0:16:24] 11...Qa5+ might become the main line.} 12. O-O {[%emt 0:00:00]} Bg4 {[%emt 0:14:11]} 13. h3 {[%emt 0:00:00] D91: Grünfeld: 4 Nf3 Bg7 5 Bg5.} Bxf3 {[%emt 0:03:14]} ({Better is} 13... Bf5 $14) 14. Bxf3 $16 {[%emt 0:00:00]} ({But not} 14. gxf3 $6 Qf5 $11) 14... Qd7 {[%emt 0:00:58]} 15. Qa4 {[%emt 0:00:00] White is better.} Rfd8 {[%emt 0:01:10][%cal Rc6d4] [#]} 16. d5 $146 {[%emt 0:35:29] [#] White is more active.} ({Predecessor:} 16. Bxc6 bxc6 17. Rfc1 Rac8 18. Rc5 Qb7 19. Rac1 Qb2 20. R5c2 Qb7 21. Rxc6 Rxc6 22. Qxc6 {1-0 Livaic,L (2576)-Dimitrov,A (2269) Titled Tuesday intern op 19th Jul Early blitz 2022 (3)}) 16... Nd4 $1 $11 {[%emt 0:06:48]} 17. Qxd7 {[%emt 0:00:20]} Nxf3+ {[%emt 0:00:06]} 18. gxf3 {[%emt 0:00:08]} Rxd7 {[%emt 0:00:02]} 19. Rad1 {[%emt 0:00:43]} Rad8 {[%emt 0:02:42][%cal Oe7e6]} 20. e4 {[%emt 0:02:36]} e6 $1 {[%emt 0:05:43][%cal Re6d5]} 21. d6 {[%emt 0:18:14]} e5 {[%emt 0:00:14]} 22. Be3 {[%emt 0:00:27]} b6 {[%emt 0:02:49]} 23. Rc1 {[%emt 0:01:12]} ({Much weaker is} 23. Bg5 f6 24. Be3 Bf8 $17) (23. Rd5 $15) 23... Rxd6 $17 {[%emt 0:00:45]} 24. Rc7 {[%emt 0:01:07]} R6d7 {[%emt 0:00:26]} 25. Rfc1 {[%emt 0:00:59]} f6 {[%emt 0:00:34]} 26. a4 {[%emt 0:02:42]} Kf7 {[%emt 0:02:42]} (26... Bf8 $17) 27. a5 $1 $11 {[%emt 0:20:31]} bxa5 {[%emt 0:00:14]} 28. Bxa7 $2 {[%emt 0:00:03]} (28. R1c5 $11) 28... Ke8 $2 {[%emt 0:00:42]} (28... a4 $19 {Strongly threatening ...a3.} 29. Be3 a3) 29. Bb6 {[%emt 0:01:50] The position is equal.} Rxc7 {[%emt 0:00:22]} 30. Rxc7 {[%emt 0:00:53]} Rd7 {[%emt 0:00:17] White must now prevent ...Rxc7.} 31. Rxd7 {[%emt 0:02:27] Weighted Error Value: White=0.46/Black=0.34} 1/2-1/2

[Event "GER-ch Youth-U18w 2023"]
[Site "Willingen"]
[Date "2023.06.01"]
[Round "7.5"]
[White "Petersen, Sophie"]
[Black "Adelhardt, Lisa"]
[Result "1/2-1/2"]
[Annotator "NA RC COMBH"]
[ECO "B30"]
[WhiteElo "1763"]
[BlackElo "1656"]
[PlyCount "59"]
[EventDate "2022.06.05"]
[EventType "swiss"]
[EventRounds "9"]
[EventCountry "GER"]
[SourceTitle "playchess.com"]
[Source "ChessBase"]
[SourceQuality "1"]
[TimeControl "40/4500+30:900+30"]

1. e4 {[%emt 0:00:00]} c5 {[%emt 0:00:00]} 2. Nf3 {[%emt 0:00:00]} Nc6 {[%emt 0:00:00]} 3. Bb5 {[%emt 0:00:00]} a6 {[%emt 0:00:00]} 4. Bxc6 {[%emt 0:00:00]} dxc6 {[%emt 0:00:00]} 5. O-O {[%emt 0:00:00]} g6 {[%emt 0:00:00]} 6. h3 {[%emt 0:00:00]} Bg7 {[%emt 0:00:00]} 7. c3 {[%emt 0:00:00]} e5 {[%emt 0:00:00]} 8. d3 {[%emt 0:00:00]} Ne7 {[%emt 0:00:00]} 9. Be3 {[%emt 0:00:00]} b6 {[%emt 0:00:00]} 10. Na3 {[%emt 0:00:00]} Rb8 {[%emt 0:00:00]} 11. Nc4 {[%emt 0:00:00]} Qc7 {[%emt 0:01:51]} 12. Qc1 {[%emt 0:05:34]} h6 {[%emt 0:06:24]} 13. Ncxe5 {[%emt 0:10:21]} Bxe5 {[%emt 0:00:34]} 14. Nxe5 {[%emt 0:00:21]} f6 {[%emt 0:05:29]} 15. Nc4 {[%emt 0:03:10]} g5 {[%emt 0:01:34]} 16. f4 {[%emt 0:08:22]} Be6 {[%emt 0:04:59]} 17. Nd2 {[%emt 0:06:35]} Bf7 {[%emt 0:06:14]} 18. Nf3 {[%emt 0:03:49]} Ng6 {[%emt 0:04:12]} 19. e5 {[%emt 0:05:42]} Qe7 {[%emt 0:10:38]} 20. fxg5 {[%emt 0:08:21]} fxg5 {[%emt 0:00:30]} 21. e6 {[%emt 0:11:40]} Bxe6 {[%emt 0:01:10]} 22. Re1 {[%emt 0:04:32]} Kd7 {[%emt 0:06:14]} 23. d4 {[%emt 0:04:27]} c4 {[%emt 0:11:00]} 24. Qc2 {[%emt 0:01:15]} Rhg8 {[%emt 0:04:40]} 25. Rad1 {[%emt 0:02:12]} Kc7 {[%emt 0:05:48]} 26. Bf2 {[%emt 0:02:40]} Rbe8 {[%emt 0:03:17]} 27. Ne5 {[%emt 0:01:23]} Nxe5 {[%emt 0:02:33]} 28. Rxe5 {[%emt 0:00:10]} Qd7 {[%emt 0:02:14]} 29. Bg3 {[%emt 0:01:25]} Kb7 {[%emt 0:00:16]} 30. Rde1 {[%emt 0:00:43]} 1/2-1/2

[Event "GER-ch Youth-U18w 2023"]
[Site "Willingen"]
[Date "2023.06.01"]
[Round "7.6"]
[White "Hafermann, Lara"]
[Black "Werner, Rosalie"]
[Result "1/2-1/2"]
[Annotator "NA RC COMBH"]
[ECO "C06"]
[WhiteElo "1498"]
[BlackElo "1751"]
[PlyCount "96"]
[EventDate "2022.06.05"]
[EventType "swiss"]
[EventRounds "9"]
[EventCountry "GER"]
[SourceTitle "playchess.com"]
[Source "ChessBase"]
[SourceQuality "1"]
[TimeControl "40/4500+30:900+30"]

1. e4 {[%emt 0:00:00]} e6 {[%emt 0:00:00]} 2. d4 {[%emt 0:00:00]} d5 {[%emt 0:00:00]} 3. Nd2 {[%emt 0:00:00]} Nf6 {[%emt 0:00:00]} 4. e5 {[%emt 0:00:00]} Nfd7 {[%emt 0:00:00]} 5. Bd3 {[%emt 0:00:00]} c5 {[%emt 0:00:00]} 6. c3 {[%emt 0:00:00]} Nc6 {[%emt 0:00:00]} 7. Ne2 {[%emt 0:00:00]} cxd4 {[%emt 0:00:00]} 8. cxd4 {[%emt 0:00:00]} f6 {[%emt 0:00:00]} 9. exf6 {[%emt 0:00:00]} Nxf6 {[%emt 0:00:00]} 10. O-O {[%emt 0:00:00]} Bd6 {[%emt 0:00:00]} 11. Nf3 {[%emt 0:00:00]} O-O {[%emt 0:00:00]} 12. Bf4 {[%emt 0:00:00]} Bxf4 {[%emt 0:00:00]} 13. Nxf4 {[%emt 0:00:00]} Ng4 {[%emt 0:00:00]} 14. Qd2 {[%emt 0:00:00]} Qf6 {[%emt 0:00:00]} 15. Nh5 {[%emt 0:00:00]} Qh6 {[%emt 0:00:00]} 16. Qxh6 {[%emt 0:00:00]} Nxh6 {[%emt 0:00:00]} 17. Rac1 {[%emt 0:00:00]} g6 {[%emt 0:00:00]} 18. Ng3 {[%emt 0:00:00]} a6 {[%emt 0:00:00]} 19. Rc3 {[%emt 0:02:01]} Nf7 {[%emt 0:05:07]} 20. a3 {[%emt 0:04:10]} Bd7 {[%emt 0:16:50]} 21. Rfc1 {[%emt 0:04:10]} Rfc8 {[%emt 0:11:48]} 22. b4 {[%emt 0:04:31]} Nd6 {[%emt 0:30:39]} 23. Ne2 {[%emt 0:12:08]} Kg7 {[%emt 0:06:12]} 24. Nf4 {[%emt 0:22:45]} Kf6 {[%emt 0:02:42]} 25. Bf1 {[%emt 0:03:04]} Ne4 {[%emt 0:06:21]} 26. Re3 {[%emt 0:04:26]} Ne7 {[%emt 0:07:11]} 27. Rxc8 {[%emt 0:01:08]} Rxc8 {[%emt 0:00:10]} 28. Ne5 {[%emt 0:00:39]} Be8 {[%emt 0:01:25]} 29. f3 {[%emt 0:00:23]} Nf5 {[%emt 0:00:45]} 30. Ng4+ {[%emt 0:07:10]} Kf7 {[%emt 0:00:45]} 31. Re1 {[%emt 0:01:30]} Nd2 {[%emt 0:00:32]} 32. Nxe6 {[%emt 0:00:18]} Nxf1 {[%emt 0:00:23]} 33. Ng5+ {[%emt 0:00:49]} Kg7 {[%emt 0:00:23]} 34. Kxf1 {[%emt 0:02:13]} Bb5+ {[%emt 0:00:21]} 35. Kg1 {[%emt 0:01:13]} h6 {[%emt 0:00:48]} 36. Ne6+ {[%emt 0:03:20]} Kf7 {[%emt 0:00:25]} 37. Nf4 {[%emt 0:02:25]} Rc3 {[%emt 0:00:39]} 38. Nxd5 {[%emt 0:02:47]} Rxa3 {[%emt 0:00:10]} 39. Ne5+ {[%emt 0:02:36]} Kg7 {[%emt 0:00:27]} 40. Nc7 {[%emt 0:03:20]} Nxd4 {[%emt 0:00:43]} 41. Ng4 {[%emt 0:19:15]} h5 {[%emt 0:00:00]} 42. Nxb5 {[%emt 0:00:00]} Nxb5 {[%emt 0:00:00]} 43. Ne3 {[%emt 0:00:00]} Rd3 {[%emt 0:00:00]} 44. Kf2 {[%emt 0:00:00]} Rd4 {[%emt 0:01:31]} 45. Nc2 {[%emt 0:00:00]} Rc4 {[%emt 0:00:22]} 46. Re2 {[%emt 0:00:00]} Kf7 {[%emt 0:01:30]} 47. Ke3 {[%emt 0:00:00]} Kf6 {[%emt 0:03:45]} 48. Kd3 {[%emt 0:01:53]} Rc3+ {[%emt 0:02:42]} 1/2-1/2

[Event "GER-ch Youth-U18w 2023"]
[Site "Willingen"]
[Date "2023.06.01"]
[Round "7.7"]
[White "Kalina, Lena"]
[Black "Derling, Charlotte"]
[Result "1/2-1/2"]
[Annotator "NA RC COMBH"]
[ECO "E69"]
[WhiteElo "1776"]
[BlackElo "1664"]
[PlyCount "106"]
[EventDate "2022.06.05"]
[EventType "swiss"]
[EventRounds "9"]
[EventCountry "GER"]
[SourceTitle "playchess.com"]
[Source "ChessBase"]
[SourceQuality "1"]
[TimeControl "40/4500+30:900+30"]

1. d4 {[%emt 0:00:00]} Nf6 {[%emt 0:00:00]} 2. c4 {[%emt 0:00:00]} g6 {[%emt 0:00:00]} 3. Nf3 {[%emt 0:00:00]} Bg7 {[%emt 0:00:00]} 4. g3 {[%emt 0:00:00]} O-O {[%emt 0:00:00]} 5. Bg2 {[%emt 0:00:00]} d6 {[%emt 0:00:00]} 6. Nc3 {[%emt 0:00:00]} c6 {[%emt 0:00:00]} 7. O-O {[%emt 0:00:00]} Qa5 {[%emt 0:00:00]} 8. h3 {[%emt 0:03:31]} e5 {[%emt 0:00:00]} 9. e4 {[%emt 0:04:45]} Nbd7 {[%emt 0:00:00]} 10. Be3 {[%emt 0:05:39]} Re8 {[%emt 0:13:21]} 11. a3 {[%emt 0:15:33]} Qc7 {[%emt 0:03:12]} 12. Rc1 {[%emt 0:05:36]} exd4 {[%emt 0:03:40]} 13. Nxd4 {[%emt 0:01:03]} Nc5 {[%emt 0:02:53]} 14. Qc2 {[%emt 0:02:54]} Ne6 {[%emt 0:11:16]} 15. Rfd1 {[%emt 0:06:24]} Nxd4 {[%emt 0:10:55]} 16. Bxd4 {[%emt 0:01:15]} Be6 {[%emt 0:00:54]} 17. b3 {[%emt 0:03:58]} a6 {[%emt 0:02:31]} 18. Qd3 {[%emt 0:03:39]} Red8 {[%emt 0:03:02]} 19. Na4 {[%emt 0:05:34]} c5 {[%emt 0:02:30]} 20. Be3 {[%emt 0:03:48]} Rab8 {[%emt 0:00:56]} 21. Nc3 {[%emt 0:02:43]} Qd7 {[%emt 0:03:08]} 22. Bf4 {[%emt 0:03:54]} Ne8 {[%emt 0:02:27]} 23. Kh2 {[%emt 0:03:03]} b5 {[%emt 0:01:31]} 24. Rb1 {[%emt 0:03:38]} Bd4 {[%emt 0:06:03]} 25. cxb5 {[%emt 0:02:20]} axb5 {[%emt 0:00:43]} 26. Be3 {[%emt 0:00:45]} Bxe3 {[%emt 0:01:34]} 27. Qxe3 {[%emt 0:00:07]} Qa7 {[%emt 0:01:57]} 28. a4 {[%emt 0:04:54]} bxa4 {[%emt 0:02:33]} 29. bxa4 {[%emt 0:00:15]} Qa5 {[%emt 0:02:26]} 30. Rb5 {[%emt 0:02:06]} Rxb5 {[%emt 0:00:18]} 31. axb5 {[%emt 0:00:01]} Bc4 {[%emt 0:01:08]} 32. Bf1 {[%emt 0:00:21]} Bxf1 {[%emt 0:01:18]} 33. Rxf1 {[%emt 0:00:02]} Nc7 {[%emt 0:00:57]} 34. Rb1 {[%emt 0:01:00]} Rb8 {[%emt 0:01:48]} 35. Qd3 {[%emt 0:00:15]} Qb6 {[%emt 0:02:01]} 36. Nd5 {[%emt 0:02:21]} Nxd5 {[%emt 0:00:26]} 37. Qxd5 {[%emt 0:00:13]} Qc7 {[%emt 0:01:01]} 38. Qc4 {[%emt 0:01:29]} Qb6 {[%emt 0:01:49]} 39. Qa4 {[%emt 0:00:56]} Rb7 {[%emt 0:02:33]} 40. Qa8+ {[%emt 0:00:45]} Kg7 {[%emt 0:02:05]} 41. Qa1+ {[%emt 0:00:00]} f6 {[%emt 0:00:00]} 42. Kg2 {[%emt 0:00:00]} Ra7 {[%emt 0:00:00]} 43. Qc3 {[%emt 0:00:00]} Ra4 {[%emt 0:00:00]} 44. Qc2 {[%emt 0:00:00]} Ra5 {[%emt 0:04:24]} 45. Qc4 {[%emt 0:06:08]} Ra7 {[%emt 0:01:57]} 46. Qe6 {[%emt 0:00:44]} Rb7 {[%emt 0:05:14]} 47. Rb3 {[%emt 0:01:26]} Qc7 {[%emt 0:01:49]} 48. Rd3 {[%emt 0:02:10]} Rb6 {[%emt 0:00:38]} 49. h4 {[%emt 0:05:18]} Qf7 {[%emt 0:01:30]} 50. Qxf7+ {[%emt 0:01:24]} Kxf7 {[%emt 0:00:51]} 51. Rb3 {[%emt 0:00:07]} Ke6 {[%emt 0:00:33]} 52. Kf3 {[%emt 0:00:04]} f5 {[%emt 0:01:20]} 53. exf5+ {[%emt 0:01:43]} Kxf5 {[%emt 0:00:12]} 1/2-1/2